fUST/lending_fUST_20240828
["ID","MTS","AMOUNT","RATE_DAILY","PERIOD"]
[336415766,1724818252102,-188.488455,0.00015068,2]
[336415767,1724818252112,-500.0,0.00015068,2]
[336415768,1724818252121,-500.0,0.00015068,2]
[336415769,1724818252130,-500.0,0.00015068,2]
[336415770,1724818252140,-1609.4,0.00015068,2]
[336415771,1724818252151,-849.17,0.00015068,2]
[336415772,1724818252161,-704.26,0.00015068,2]
[336415773,1724818252170,-1995.16,0.00015068,2]
[336415774,1724818252181,-3792.06,0.00015068,2]
[336415775,1724818252191,-1802.29,0.00015068,2]
[336415776,1724818252202,-214.828558,0.00015083,2]
[336415777,1724818252211,-1057.530059,0.00015083,2]
[336415778,1724818252221,-644.485674,0.00015083,2]
[336415779,1724818252230,-202.654079,0.00015083,2]
[336415780,1724818252244,-264.382515,0.00015083,2]
[336415781,1724818252254,-214.828559,0.00015083,2]
[336415782,1724818252263,-500.0,0.00015119,2]
[336415783,1724818252272,-500.0,0.00015164,7]
[336415784,1724818252283,-500.0,0.00015164,7]
[336415785,1724818252292,-500.0,0.00015164,7]
[336415786,1724818252303,-500.0,0.00015164,7]
[336415787,1724818252315,-500.0,0.00015164,7]
[336415788,1724818252324,-500.0,0.00015164,7]
[336415789,1724818252335,-500.0,0.00015164,7]
[336415790,1724818252347,-500.0,0.00015164,7]
[336415791,1724818252356,-462.53,0.00015164,7]
[336415792,1724818252366,-500.0,0.00015164,7]
[336415793,1724818252376,-500.0,0.00015164,7]
[336415794,1724818252385,-500.0,0.00015164,7]
[336415795,1724818252395,-500.0,0.00015164,7]
[336415796,1724818252407,-500.0,0.00015164,7]
[336415797,1724818252419,-500.0,0.00015164,7]
[336415798,1724818252428,-500.0,0.00015164,7]
[336415799,1724818252439,-500.0,0.00015164,7]
[336415800,1724818252448,-500.0,0.00015164,7]
[336415801,1724818252459,-500.0,0.00015164,7]
[336415802,1724818252469,-500.0,0.00015164,7]
[336415803,1724818252479,-500.0,0.00015164,7]
[336415804,1724818252489,-500.0,0.00015164,7]
[336415805,1724818252501,-500.0,0.00015164,7]
[336415806,1724818252512,-500.0,0.00015164,7]
[336415807,1724818252522,-500.0,0.00015164,7]
[336415808,1724818252531,-500.0,0.00015164,7]
[336415809,1724818252541,-500.0,0.00015164,7]
[336415810,1724818252551,-500.0,0.00015164,7]
[336415811,1724818252560,-500.0,0.00015164,7]
[336415812,1724818252569,-500.0,0.00015164,7]
[336415813,1724818252579,-500.0,0.00015164,7]
[336415814,1724818252589,-500.0,0.00015164,7]
[336415815,1724818252598,-500.0,0.00015164,7]
[336415816,1724818252607,-500.0,0.00015164,7]
[336415817,1724818252616,-500.0,0.00015164,7]
[336415818,1724818252627,-500.0,0.00015164,7]
[336415819,1724818252637,-500.0,0.00015164,7]
[336415820,1724818252647,-500.0,0.00015164,7]
[336415821,1724818252663,-500.0,0.00015164,7]
[336415822,1724818252675,-500.0,0.00015164,7]
[336415823,1724818252684,-500.0,0.00015164,7]
[336415824,1724818252693,-500.0,0.00015164,7]
[336415825,1724818252702,-500.0,0.00015164,7]
[336415826,1724818252711,-500.0,0.00015164,7]
[336415827,1724818252721,-500.0,0.00015164,7]
[336415828,1724818252730,-500.0,0.00015164,7]
[336415829,1724818252740,-500.0,0.00015164,7]
[336415830,1724818252751,-500.0,0.00015164,7]
[336415831,1724818252760,-593.13,0.00015164,7]
[336415832,1724818252771,-500.0,0.00015164,7]
[336415833,1724818252780,-151.0,0.00015218,2]
[336415834,1724818252790,-151.0,0.00015218,2]
[336415835,1724818252800,-206.632367,0.00015218,2]
[336415836,1724818252810,-153.0,0.00015285,2]
[336415837,1724818252820,-151.0,0.00015342,2]
[336415838,1724818252829,-151.0,0.00015342,2]
[336415839,1724818252839,-151.0,0.00015342,2]
[336415840,1724818252848,-151.0,0.00015342,2]
[336415841,1724818252858,-151.0,0.00015342,2]
[336415842,1724818252867,-151.0,0.00015342,2]
[336415843,1724818252877,-500.0,0.00015342,2]
[336415844,1724818252886,-419.332608,0.00015342,2]
[336415845,1724818252895,-151.810379,0.00015342,2]
[336415846,1724818252912,-151.0,0.00015342,2]
[336415847,1724818252922,-151.0,0.00015342,2]
[336415848,1724818252932,-500.0,0.00015342,2]
[336415849,1724818252942,-709.073354,0.00015342,2]
[336415850,1724818252953,-709.073354,0.00015342,2]
[336415851,1724818252963,-500.0,0.00015342,2]
[336415852,1724818252974,-2154.49,0.00015342,2]
[336415853,1724818252985,-738.34,0.00015342,2]
[336415854,1724818252995,-1403.42,0.00015342,2]
[336415855,1724818253006,-500.0,0.00015342,2]
[336415856,1724818253016,-1681.41,0.00015342,2]
[336415857,1724818253027,-2920.93,0.00015342,2]
[336415858,1724818253038,-1500.89,0.00015342,2]
[336415859,1724818253049,-2080.09,0.00015342,2]
[336415860,1724818253062,-500.0,0.00015342,2]
[336415861,1724818253074,-500.0,0.00015342,2]
[336415862,1724818253086,-500.0,0.00015342,2]
[336415863,1724818253096,-500.0,0.00015342,2]
[336415864,1724818253107,-1609.4,0.00015342,2]
[336415865,1724818253118,-849.17,0.00015342,2]
[336415866,1724818253128,-704.26,0.00015342,2]
[336415867,1724818253138,-1995.16,0.00015342,2]
[336415868,1724818253150,-3792.06,0.00015342,2]
[336415869,1724818253162,-1802.29,0.00015342,2]
[336415870,1724818253172,-153.0,0.00015351,2]
[336415871,1724818253182,-153.0,0.00015351,2]
[336415872,1724818253191,-1942.88304747,0.00015359,2]
[336415873,1724818253201,-1942.88304747,0.00015359,2]
[336415874,1724818253212,-1831.32589662,0.00015493,2]
[336415875,1724818253223,-202.95221808,0.00015493,2]
[336415876,1724818253237,-600.0,0.00015517,2]
[336415877,1724818253247,-154.74467129,0.00015547,2]
[336415878,1724818253258,-151.402286,0.00015616,2]
[336415879,1724818253269,-151.0,0.00015616,2]
[336415880,1724818253279,-481.204689,0.00015616,2]
[336415881,1724818253289,-481.204689,0.00015616,2]
[336415882,1724818253299,-500.0,0.00015616,2]
[336415883,1724818253310,-500.0,0.00015616,2]
[336415884,1724818253322,-500.0,0.00015616,2]
[336415885,1724818253333,-2154.49,0.00015616,2]
[336415886,1724818253342,-738.34,0.00015616,2]
[336415887,1724818253351,-1403.42,0.00015616,2]
[336415888,1724818253361,-500.0,0.00015616,2]
[336415889,1724818253370,-1681.41,0.00015616,2]
[336415890,1724818253379,-2920.93,0.00015616,2]
[336415891,1724818253389,-1500.89,0.00015616,2]
[336415892,1724818253401,-2080.09,0.00015616,2]
[336415893,1724818253412,-500.0,0.00015616,2]
[336415894,1724818253422,-500.0,0.00015616,2]
[336415895,1724818253432,-500.0,0.00015616,2]
[336415896,1724818253442,-159.56080967,0.00015616,2]
[336415897,1724818253451,-1609.4,0.00015616,2]
[336415898,1724818253461,-849.17,0.00015616,2]
[336415899,1724818253471,-704.26,0.00015616,2]
[336415900,1724818253480,-1995.16,0.00015616,2]
[336415901,1724818253489,-3792.06,0.00015616,2]
[336415902,1724818253499,-1802.29,0.00015616,2]
[336415903,1724818253508,-465.05669603,0.00015695,2]
[336415904,1724818253520,-151.0,0.0001589,2]
[336415905,1724818253531,-151.0,0.0001589,2]
[336415906,1724818253540,-151.0,0.0001589,2]
[336415907,1724818253551,-231.311176,0.0001589,2]
[336415908,1724818253562,-231.311176,0.0001589,2]
[336415909,1724818253574,-452.958988,0.0001589,2]
[336415910,1724818253586,-452.958988,0.0001589,2]
[336415911,1724818253597,-612.705406,0.0001589,2]
[336415912,1724818253607,-612.705406,0.0001589,2]
[336415913,1724818253617,-980.90839,0.0001589,2]
[336415914,1724818253626,-980.90839,0.0001589,2]
[336415915,1724818253636,-297.052202,0.0001589,2]
[336415916,1724818253646,-297.052202,0.0001589,2]
[336415917,1724818253658,-500.0,0.0001589,2]
[336415918,1724818253667,-500.0,0.0001589,2]
[336415919,1724818253676,-645.986658,0.0001589,2]
[336415920,1724818253686,-645.986658,0.0001589,2]
[336415921,1724818253696,-500.0,0.0001589,2]
[336415922,1724818253706,-2154.49,0.0001589,2]
[336415923,1724818253715,-738.34,0.0001589,2]
[336415924,1724818253727,-1403.42,0.0001589,2]
[336415925,1724818253736,-500.0,0.0001589,2]
[336415926,1724818253747,-1681.41,0.0001589,2]
[336415927,1724818253759,-2920.93,0.0001589,2]
[336415928,1724818253768,-1500.89,0.0001589,2]
[336415929,1724818253892,-2080.09,0.0001589,2]
[336415930,1724818253906,-500.0,0.0001589,2]
[336415931,1724818253917,-500.0,0.0001589,2]
[336415932,1724818253926,-500.0,0.0001589,2]
[336415933,1724818253936,-1609.4,0.0001589,2]
[336415934,1724818253947,-849.17,0.0001589,2]
[336415935,1724818253958,-704.26,0.0001589,2]
[336415936,1724818253969,-1995.16,0.0001589,2]
[336415937,1724818253979,-3792.06,0.0001589,2]
[336415938,1724818253989,-1802.29,0.0001589,2]
[336415939,1724818254000,-3000.0,0.00016,2]
[336415940,1724818254011,-3000.0,0.0001601,2]
[336415941,1724818254022,-153.0,0.00016019,2]
[336415942,1724818254034,-153.0,0.00016019,2]
[336415943,1724818254045,-306.0,0.00016019,2]
[336415944,1724818254056,-151.0,0.0001602,2]
[336415945,1724818254067,-151.0,0.0001602,2]
[336415946,1724818254078,-3000.0,0.0001602,2]
[336415947,1724818254088,-3000.0,0.0001603,2]
[336415948,1724818254098,-3000.0,0.0001604,2]
[336415949,1724818254110,-3000.0,0.0001605,2]
[336415950,1724818254120,-3000.0,0.0001606,2]
[336415951,1724818254130,-3000.0,0.0001607,2]
[336415952,1724818254141,-3000.0,0.0001608,2]
[336415953,1724818254155,-3000.0,0.0001609,2]
[336415954,1724818254164,-617.127279,0.0001609,2]
[336415955,1724818254173,-617.127279,0.0001609,2]
[336415956,1724818254183,-330.603884,0.0001609,2]
[336415957,1724818254193,-330.603884,0.0001609,2]
[336415958,1724818254203,-645.999336,0.0001609,2]
[336415959,1724818254213,-151.0,0.0001609,2]
[336415960,1724818254223,-645.999336,0.0001609,2]
[336415961,1724818254234,-3000.0,0.000161,2]
[336415962,1724818254249,-151.0,0.0001611,2]
[336415963,1724818254259,-151.0,0.0001611,2]
[336415964,1724818254270,-153.685055,0.0001611,2]
[336415965,1724818254281,-153.685055,0.0001611,2]
[336415966,1724818254290,-151.0,0.0001611,2]
[336415967,1724818254300,-3000.0,0.0001611,2]
[336415968,1724818254310,-3000.0,0.0001612,2]
[336415969,1724818254320,-3000.0,0.0001613,2]
[336415970,1724818254330,-477.953978,0.0001613,2]
[336415971,1724818254340,-477.953978,0.0001613,2]
[336415972,1724818254351,-181.320174,0.0001613,2]
[336415973,1724818254362,-181.320174,0.0001613,2]
[336415974,1724818254372,-5226.782968,0.0001613,2]
[336415975,1724818254382,-5226.782968,0.0001613,2]
[336415976,1724818254392,-3000.0,0.0001614,2]
[336415977,1724818254403,-151.0,0.0001614,2]
[336415978,1724818254412,-151.0,0.0001614,2]
[336415979,1724818254421,-585.777275,0.0001614,2]
[336415980,1724818254431,-585.777275,0.0001614,2]
[336415981,1724818254442,-3000.0,0.0001615,2]
[336415982,1724818254453,-3000.0,0.0001616,2]
[336415983,1724818254464,-266.75960114,0.00016163,2]
[336415984,1724818254475,-6981.75095404,0.00016163,2]
[336415985,1724818254486,-804.331812,0.00016163,2]
[336415986,1724818254498,-804.331812,0.00016163,2]
[336415987,1724818254507,-451.820278,0.00016163,2]
[336415988,1724818254518,-451.820278,0.00016163,2]
[336415989,1724818254528,-7674.33403234,0.00016164,5]
[336415990,1724818254539,-500.0,0.00016164,2]
[336415991,1724818254549,-186.26291443,0.00016164,2]
[336415992,1724818254559,-185.95709721,0.00016164,2]
[336415993,1724818254568,-500.0,0.00016164,2]
[336415994,1724818254579,-500.0,0.00016164,2]
[336415995,1724818254592,-151.0,0.00016164,2]
[336415996,1724818254602,-151.0,0.00016164,2]
[336415997,1724818254612,-573.426343,0.00016164,2]
[336415998,1724818254621,-573.426343,0.00016164,2]
[336415999,1724818254631,-151.0,0.00016164,2]
[336416000,1724818254640,-151.0,0.00016164,2]
[336416001,1724818254651,-151.0,0.00016164,2]
[336416002,1724818254660,-151.0,0.00016164,2]
[336416003,1724818254670,-151.0,0.00016164,2]
[336416004,1724818254680,-151.0,0.00016164,2]
[336416005,1724818254691,-151.0,0.00016164,2]
[336416006,1724818254703,-339.213265,0.00016164,2]
[336416007,1724818254715,-339.213265,0.00016164,2]
[336416008,1724818254724,-151.0,0.00016164,2]
[336416009,1724818254734,-151.0,0.00016164,2]
[336416010,1724818254744,-191.640316,0.00016164,2]
[336416011,1724818254754,-191.640316,0.00016164,2]
[336416012,1724818254765,-212.132582,0.00016164,2]
[336416013,1724818254774,-212.132582,0.00016164,2]
[336416014,1724818254784,-412.566676,0.00016164,2]
[336416015,1724818254794,-412.566676,0.00016164,2]
[336416016,1724818254803,-500.0,0.00016164,2]
[336416017,1724818254814,-2154.49,0.00016164,2]
[336416018,1724818254824,-738.34,0.00016164,2]
[336416019,1724818254833,-1403.42,0.00016164,2]
[336416020,1724818254842,-455.38622534,0.00016164,2]
[336416021,1724818254852,-1681.41,0.00016164,2]
[336416022,1724818254862,-2920.93,0.00016164,2]
[336416023,1724818254871,-1500.89,0.00016164,2]
[336416024,1724818254880,-2080.09,0.00016164,2]
[336416025,1724818254890,-500.0,0.00016164,2]
[336416026,1724818254900,-500.0,0.00016164,2]
[336416027,1724818254910,-500.0,0.00016164,2]
[336416028,1724818254919,-1609.4,0.00016164,2]
[336416029,1724818254929,-849.17,0.00016164,2]
[336416030,1724818254939,-704.26,0.00016164,2]
[336416031,1724818254950,-1995.16,0.00016164,2]
[336416032,1724818254959,-3792.06,0.00016164,2]
[336416033,1724818254969,-1802.29,0.00016164,2]
[336416034,1724818254978,-3000.0,0.0001617,2]
[336416035,1724818254987,-3000.0,0.0001618,2]
[336416036,1724818254997,-3000.0,0.0001619,2]
[336416037,1724818255007,-3000.0,0.000162,2]
[336416038,1724818255016,-151.0,0.0001621,2]
[336416039,1724818255028,-151.0,0.0001621,2]
[336416040,1724818255038,-151.0,0.0001621,2]
[336416041,1724818255048,-3000.0,0.0001621,2]
[336416042,1724818255057,-3000.0,0.0001622,2]
[336416043,1724818255067,-3000.0,0.0001623,2]
[336416044,1724818255076,-188.488455,0.0001623,2]
[336416045,1724818255085,-188.488455,0.0001623,2]
[336416046,1724818255094,-3000.0,0.0001624,2]
[336416047,1724818255103,-3000.0,0.0001625,2]
[336416048,1724818255113,-3000.0,0.0001626,2]
[336416049,1724818255122,-3000.0,0.0001627,2]
[336416050,1724818255131,-3000.0,0.0001628,2]
[336416051,1724818255142,-3000.0,0.0001629,2]
[336416052,1724818255154,-3000.0,0.000163,2]
[336416053,1724818255164,-3000.0,0.0001631,2]
[336416054,1724818255175,-151.0,0.0001632,2]
[336416055,1724818255186,-481.204689,0.0001632,2]
[336416056,1724818255197,-481.204689,0.0001632,2]
[336416057,1724818255208,-3000.0,0.0001632,2]
[336416058,1724818255219,-3000.0,0.0001633,2]
[336416059,1724818255229,-3000.0,0.0001634,2]
[336416060,1724818255243,-3000.0,0.0001635,2]
[336416061,1724818255252,-151.0,0.0001636,2]
[336416062,1724818255261,-151.0,0.0001636,2]
[336416063,1724818255273,-206.632367,0.0001636,2]
[336416064,1724818255285,-3000.0,0.0001636,2]
[336416065,1724818255296,-3000.0,0.0001637,2]
[336416066,1724818255308,-3000.0,0.0001638,2]
[336416067,1724818255322,-3000.0,0.0001639,2]
[336416068,1724818255332,-4000.0,0.000164,2]
[336416069,1724818255341,-4000.0,0.000164,2]
[336416070,1724818255350,-4000.0,0.000164,2]
[336416071,1724818255360,-4000.0,0.000164,2]
[336416072,1724818255369,-4000.0,0.000164,2]
[336416073,1724818255378,-4000.0,0.000164,2]
[336416074,1724818255388,-4000.0,0.000164,2]
[336416075,1724818255398,-4000.0,0.000164,2]
[336416076,1724818255408,-4000.0,0.000164,2]
[336416077,1724818255417,-1147.660784,0.000164,2]
[336416078,1724818255427,-151.0,0.000164,2]
[336416079,1724818255436,-151.0,0.000164,2]
[336416080,1724818255446,-709.073354,0.000164,2]
[336416081,1724818255456,-709.073354,0.000164,2]
[336416082,1724818255466,-3000.0,0.000164,2]
[336416083,1724818255477,-3000.0,0.0001641,2]
[336416084,1724818255489,-3000.0,0.0001642,2]
[336416085,1724818255500,-3000.0,0.0001643,2]
[336416086,1724818255511,-151.0,0.00016438,2]
[336416087,1724818255523,-151.0,0.00016438,2]
[336416088,1724818255533,-199.078085,0.00016438,2]
[336416089,1724818255544,-151.0,0.00016438,2]
[336416090,1724818255553,-151.0,0.00016438,2]
[336416091,1724818255563,-217.959869,0.00016438,2]
[336416092,1724818255575,-500.0,0.00016438,2]
[336416093,1724818255588,-419.332608,0.00016438,2]
[336416094,1724818255599,-500.0,0.00016438,2]
[336416095,1724818255610,-500.0,0.00016438,2]
[336416096,1724818255621,-2154.49,0.00016438,2]
[336416097,1724818255630,-738.34,0.00016438,2]
[336416098,1724818255639,-1403.42,0.00016438,2]
[336416099,1724818255649,-1681.41,0.00016438,2]
[336416100,1724818255660,-2920.93,0.00016438,2]
[336416101,1724818255669,-1500.89,0.00016438,2]
[336416102,1724818255678,-2080.09,0.00016438,2]
[336416103,1724818255688,-500.0,0.00016438,2]
[336416104,1724818255697,-361.05,0.00016438,2]
[336416105,1724818255706,-500.0,0.00016438,2]
[336416106,1724818255716,-1609.4,0.00016438,2]
[336416107,1724818255725,-849.17,0.00016438,2]
[336416108,1724818255735,-704.26,0.00016438,2]
[336416109,1724818255746,-1995.16,0.00016438,2]
[336416110,1724818255756,-3792.06,0.00016438,2]
[336416111,1724818255766,-1802.29,0.00016438,2]
[336416112,1724818255777,-151.0,0.00016438,2]
[336416113,1724818255787,-3000.0,0.0001644,2]
[336416114,1724818255798,-3000.0,0.0001645,2]
[336416115,1724818255807,-3000.0,0.0001646,2]
[336416116,1724818255817,-3000.0,0.0001647,2]
[336416117,1724818255828,-465.0028348,0.0001648,2]
[336416118,1724818255838,-3000.0,0.0001648,2]
[336416119,1724818255851,-3000.0,0.0001649,2]
[336416120,1724818255862,-959.87732897,0.000165,2]
[336416121,1724818255876,-3000.0,0.000165,2]
[336416122,1724818255889,-3000.0,0.0001651,2]
[336416123,1724818255898,-3000.0,0.0001652,2]
[336416124,1724818255918,-645.986658,0.0001653,2]
[336416125,1724818255928,-645.986658,0.0001653,2]
[336416126,1724818255938,-3000.0,0.0001653,2]
[336416127,1724818255951,-3000.0,0.0001654,2]
[336416128,1724818255961,-3000.0,0.0001655,2]
[336416129,1724818255970,-3000.0,0.0001656,2]
[336416130,1724818255979,-3000.0,0.0001657,2]
[336416131,1724818255988,-151.0,0.0001658,2]
[336416132,1724818255997,-231.311176,0.0001658,2]
[336416133,1724818256008,-231.311176,0.0001658,2]
[336416134,1724818256017,-452.958988,0.0001658,2]
[336416135,1724818256027,-452.958988,0.0001658,2]
[336416136,1724818256036,-980.90839,0.0001658,2]
[336416137,1724818256045,-980.90839,0.0001658,2]
[336416138,1724818256055,-297.052202,0.0001658,2]
[336416139,1724818256067,-297.052202,0.0001658,2]
[336416140,1724818256078,-3000.0,0.0001658,2]
[336416141,1724818256087,-617.127279,0.0001658,2]
[336416142,1724818256098,-617.127279,0.0001658,2]
[336416143,1724818256107,-330.603884,0.0001658,2]
[336416144,1724818256117,-330.603884,0.0001658,2]
[336416145,1724818256127,-645.999336,0.0001658,2]
[336416146,1724818256136,-151.0,0.0001658,2]
[336416147,1724818256146,-645.999336,0.0001658,2]
[336416148,1724818256164,-3000.0,0.0001659,2]
[336416149,1724818256175,-39935.32609713,0.0001659,2]
[336416150,1724818256185,-3000.0,0.000166,2]
[336416151,1724818256195,-3000.0,0.0001661,2]
[336416152,1724818256205,-5805.055719,0.0001662,2]
[336416153,1724818256216,-477.953978,0.0001662,2]
[336416154,1724818256227,-477.953978,0.0001662,2]
[336416155,1724818256240,-181.320174,0.0001662,2]
[336416156,1724818256251,-181.320174,0.0001662,2]
[336416157,1724818256261,-5226.782968,0.0001662,2]
[336416158,1724818256272,-5226.782968,0.0001662,2]
[336416159,1724818256284,-804.331812,0.00016699,2]
[336416160,1724818256296,-804.331812,0.00016699,2]
[336416161,1724818256305,-451.820278,0.00016699,2]
[336416162,1724818256318,-451.820278,0.00016699,2]
[336416163,1724818256328,-305.4305498,0.00016702,2]
[336416164,1724818256337,-612.705406,0.00016712,2]
[336416165,1724818256348,-612.705406,0.00016712,2]
[336416166,1724818256357,-151.0,0.00016712,2]
[336416167,1724818256366,-151.0,0.00016712,2]
[336416168,1724818256375,-500.0,0.00016712,2]
[336416169,1724818256385,-500.0,0.00016712,2]
[336416170,1724818256394,-151.0,0.00016712,2]
[336416171,1724818256406,-151.0,0.00016712,2]
[336416172,1724818256444,-500.0,0.00016712,2]
[336416173,1724818256454,-2154.49,0.00016712,2]
[336416174,1724818256463,-1403.42,0.00016712,2]
[336416175,1724818256471,-1681.41,0.00016712,2]
[336416176,1724818256480,-2920.93,0.00016712,2]
[336416177,1724818256490,-1500.89,0.00016712,2]
[336416178,1724818256499,-2080.09,0.00016712,2]
[336416179,1724818256509,-500.0,0.00016712,2]
[336416180,1724818256520,-585.777275,0.00016712,2]
[336416181,1724818256530,-585.777275,0.00016712,2]
[336416182,1724818256540,-500.0,0.00016712,2]
[336416183,1724818256549,-1609.4,0.00016712,2]
[336416184,1724818256559,-849.17,0.00016712,2]
[336416185,1724818256568,-704.26,0.00016712,2]
[336416186,1724818256578,-1995.16,0.00016712,2]
[336416187,1724818256589,-3792.06,0.00016712,2]
[336416188,1724818256599,-1802.29,0.00016712,2]
[336416189,1724818256609,-151.0,0.00016986,2]
[336416190,1724818256620,-151.0,0.00016986,2]
[336416191,1724818256632,-153.685055,0.00016986,2]
[336416192,1724818256642,-153.685055,0.00016986,2]
[336416193,1724818256653,-151.0,0.00016986,2]
[336416194,1724818256664,-151.0,0.00016986,2]
[336416195,1724818256673,-151.0,0.00016986,2]
[336416196,1724818256684,-151.0,0.00016986,2]
[336416197,1724818256696,-500.0,0.00016986,2]
[336416198,1724818256707,-302.8639494,0.00016986,2]
[336416199,1724818256718,-493.51781183,0.00016986,2]
[336416200,1724818256729,-2154.49,0.00016986,2]
[336416201,1724818256740,-1403.42,0.00016986,2]
[336416202,1724818256750,-1681.41,0.00016986,2]
[336416203,1724818256759,-2920.93,0.00016986,2]
[336416204,1724818256770,-1500.89,0.00016986,2]
[336416205,1724818256781,-2080.09,0.00016986,2]
[336416206,1724818256791,-171.33463303,0.00016986,2]
[336416207,1724818256801,-188.488455,0.00016986,2]
[336416208,1724818256812,-188.488455,0.00016986,2]
[336416209,1724818256824,-500.0,0.00016986,2]
[336416210,1724818256834,-1609.4,0.00016986,2]
[336416211,1724818256844,-849.17,0.00016986,2]
[336416212,1724818256853,-704.26,0.00016986,2]
[336416213,1724818256863,-1995.16,0.00016986,2]
[336416214,1724818256872,-3792.06,0.00016986,2]
[336416215,1724818256882,-1802.29,0.00016986,2]
[336416216,1724818256892,-150.0,0.00016988,2]
[336416217,1724818256903,-150.0,0.00016988,2]
[336416218,1724818256914,-522.0,0.00016988,2]
[336416219,1724818256923,-154.59033561,0.00017,2]
[336416220,1724818256933,-151.0,0.0001726,2]
[336416221,1724818256945,-481.204689,0.0001726,2]
[336416222,1724818256954,-481.204689,0.0001726,2]
[336416223,1724818256964,-332.87941407,0.0001726,2]
[336416224,1724818256975,-2154.69651924,0.0001726,2]
[336416225,1724818256985,-1403.46282102,0.0001726,2]
[336416226,1724818256994,-1681.56229194,0.0001726,2]
[336416227,1724818257005,-2921.1005034,0.0001726,2]
[336416228,1724818257016,-1500.92178498,0.0001726,2]
[336416229,1724818257027,-2080.14538621,0.0001726,2]
[336416230,1724818257038,-471.13629815,0.0001726,2]
[336416231,1724818257048,-1609.61380156,0.0001726,2]
[336416232,1724818257057,-849.2018636,0.0001726,2]
[336416233,1724818257067,-704.28089761,0.0001726,2]
[336416234,1724818257076,-1995.28,0.0001726,2]
[336416235,1724818257085,-3792.09752743,0.0001726,2]
[336416236,1724818257095,-1802.49275355,0.0001726,2]
[336416237,1724818257104,-465.00014174,0.00017304,2]
[336416238,1724818257113,-201.72006748,0.00017533,2]
[336416239,1724818257123,-153.0,0.00017543,2]
[336416240,1724818257132,-415.2455582,0.00017614,2]
[336416241,1724818257143,-207.7907237,0.00017614,2]
[336416242,1724818257152,-35754.0580715,0.00017898,2]
[336416243,1724818257164,-151.0,0.00017898,2]
[336416244,1724818257175,-419.332608,0.00017898,2]
[336416245,1724818257185,-419.332608,0.00017898,2]
[336416246,1724818257195,-151.0,0.00017898,2]
[336416247,1724818257205,-151.0,0.00017898,2]
[336416248,1724818257214,-709.073354,0.00017898,2]
[336416249,1724818257224,-709.073354,0.00017898,2]
[336416250,1724818257234,-151.0,0.00017898,2]
[336416251,1724818257246,-151.0,0.00017898,2]
[336416252,1724818257257,-573.426343,0.00017898,2]
[336416253,1724818257268,-573.426343,0.00017898,2]
[336416254,1724818257279,-151.0,0.00017898,2]
[336416255,1724818257288,-151.0,0.00017898,2]
[336416256,1724818257298,-151.0,0.00017898,2]
[336416257,1724818257308,-151.0,0.00017898,2]
[336416258,1724818257318,-151.0,0.00017898,2]
[336416259,1724818257328,-151.0,0.00017898,2]
[336416260,1724818257339,-151.726037,0.00017898,2]
[336416261,1724818257348,-151.0,0.00017898,2]
[336416262,1724818257358,-339.213265,0.00017898,2]
[336416263,1724818257369,-339.213265,0.00017898,2]
[336416264,1724818257378,-151.0,0.00017898,2]
[336416265,1724818257388,-214.154407,0.00017898,2]